bitfinex-derivatives/quotes_ETHF0:USTF0_20241004
["timestamp","ask_amount","ask_price","bid_price","bid_amount"]
[1728053207421,3.3,2365.6,2364.8,0.3877]
[1728053207624,3.3,2364.9,2364.8,0.81061]
[1728053207931,3.3,2364.9,2364.8,0.3877]
[1728053208235,3.3,2364.9,2364.6,0.42295]
[1728053208236,3.72292,2364.9,2364.6,0.42295]
[1728053208423,3.72295,2364.7,2364.4,0.42298]
[1728053208623,3.3,2364.4,2364.3,0.8107]
[1728053209027,3.3,2364.4,2364.2,0.42303]
[1728053209232,3.3,2364.3,2364.1,0.4002]
[1728053209425,3.3,2364.9,2364.6,0.42296]
[1728053209834,3.6307,2365.0,2364.2,7.95547]
[1728053209835,6.5078,2365.0,2364.2,7.95547]
[1728053210130,6.5078,2365.0,2364.8,0.42292]
[1728053210331,4.2288,2364.9,2363.7,6.21097699]
[1728053210529,4.2288,2364.9,2364.4,0.42299]
[1728053210530,3.3,2364.5,2364.4,0.42299]
[1728053210730,3.3,2364.5,2364.0,0.42306]
[1728053211029,3.3,2364.3,2364.1,0.42305]
[1728053211625,3.3,2364.3,2363.9,0.3916]
[1728053211626,3.72303,2364.3,2363.9,0.3916]
[1728053211825,3.72303,2364.3,2364.0,0.42306]
[1728053212026,3.3,2364.3,2363.9,0.3916]
[1728053212532,0.42304,2364.2,2364.0,0.42306]
[1728053212729,0.42304,2364.2,2363.9,0.3916]
[1728053213035,0.42304,2364.2,2363.9,0.81468]
[1728053213331,3.3,2364.1,2363.9,0.3916]
[1728053213524,3.3,2364.1,2363.9,0.81467]
[1728053214028,3.72305,2364.1,2363.9,0.3916]
[1728053214332,3.3,2364.1,2364.0,0.42307]
[1728053214729,3.72302,2364.3,2364.1,0.42304]
[1728053215331,3.63081,2364.4,2364.2,0.42303]
[1728053215532,3.2078,2364.4,2363.9,0.3916]
[1728053215831,3.2078,2364.4,2364.3,0.42302]
[1728053216237,3.3,2364.5,2364.4,0.423]
[1728053217126,0.4009,2364.6,2364.5,0.42298]
[1728053217829,3.7009,2364.6,2364.1,4.26542]
[1728053218029,3.7009,2364.6,2364.5,0.42298]
[1728053218633,6.5078,2364.7,2364.6,0.42296]
[1728053219337,3.2078,2364.7,2364.6,0.42296]
[1728053219530,3.2078,2364.7,2364.6,4.65176]
[1728053219730,3.3,2364.9,2364.6,4.65176]
[1728053219731,3.3,2364.9,2364.6,4.2288]
[1728053219937,3.3,2364.9,2364.8,0.42293]
[1728053220638,3.3,2365.1,2365.0,0.42289]
[1728053221041,0.4276,2365.2,2365.1,0.42287]
[1728053221231,3.2078,2365.3,2365.2,0.42286]
[1728053221439,0.4134,2365.6,2365.0,4.35724]
[1728053221738,0.4134,2365.6,2365.5,0.4228]
[1728053222334,6.5078,2365.7,2365.6,0.42278]
[1728053222743,1.05676,2366.1,2366.0,0.42271]
[1728053222744,3.2078,2366.1,2366.0,0.42271]
[1728053224332,3.2078,2366.1,2366.0,4.64911]
[1728053224536,0.4134,2366.4,2366.3,0.42266]
[1728053224846,0.42262,2366.5,2366.4,0.42263]
[1728053225247,7.2678,2366.6,2366.1,0.4103]
[1728053225544,3.2078,2366.3,2366.2,0.42267]
[1728053226139,7.2678,2366.6,2366.4,0.42264]
[1728053226339,0.42265,2366.4,2366.1,0.4103]
[1728053226545,0.42264,2366.5,2366.3,0.42265]
[1728053226841,0.42263,2366.5,2366.1,0.4103]
[1728053227050,0.42263,2366.5,2366.4,0.42264]
[1728053227238,7.69042,2366.6,2366.2,0.42268]
[1728053227444,7.2678,2366.6,2366.1,0.4103]
[1728053227745,7.2678,2366.6,2366.5,0.42262]
[1728053227939,7.69041,2366.6,2366.5,0.42262]
[1728053228144,0.42263,2366.5,2366.4,0.42263]
[1728053228544,8.32434,2366.6,2366.2,0.42267]
[1728053228848,0.42267,2366.3,2366.2,0.42267]
[1728053229046,0.42267,2366.3,2366.2,0.42268]
[1728053229345,3.63047,2366.3,2366.2,0.42268]
[1728053229540,3.2078,2366.3,2366.2,0.42268]
[1728053229741,3.2078,2366.3,2365.9,3.2078]
[1728053229949,3.2078,2366.3,2366.2,0.42268]
[1728053229950,3.63047,2366.3,2366.2,0.42268]
[1728053230153,3.2078,2366.3,2366.2,0.42268]
[1728053230352,3.63047,2366.3,2366.1,0.42268]
[1728053230651,3.63047,2366.3,2365.9,3.2078]
[1728053230958,3.63047,2366.3,2366.2,0.42268]
[1728053231149,3.2078,2366.3,2366.2,0.42268]
[1728053232449,7.69041,2366.6,2366.5,0.42262]
[1728053232952,11.4934,2366.6,2366.5,0.42262]
[1728053233158,3.2078,2366.6,2366.5,0.42262]
[1728053236254,3.63041,2366.6,2366.5,0.42262]
[1728053236451,11.4934,2366.6,2365.9,3.2078]
[1728053236661,7.2678,2366.6,2366.5,0.42262]
[1728053236966,7.69041,2366.6,2366.5,0.42262]
[1728053237163,0.42263,2366.5,2366.4,0.42264]
[1728053237359,7.69041,2366.6,2366.5,0.42262]
[1728053237664,7.2678,2366.6,2366.4,0.42263]
[1728053237857,7.69042,2366.6,2366.4,0.42263]
[1728053238358,0.42262,2366.5,2366.3,0.42265]
[1728053238561,0.42262,2366.5,2366.1,1.05674]
[1728053238867,0.42262,2366.5,2366.3,0.42264]
[1728053239062,7.2678,2366.6,2366.1,1.05674]
[1728053239263,7.69041,2366.6,2366.5,0.42262]
[1728053239568,7.69041,2366.6,2366.0,0.4043]
[1728053239569,7.2678,2366.6,2366.0,1.46108]
[1728053240066,0.42263,2366.5,2366.4,0.42264]
[1728053240256,3.2078,2366.6,2366.5,0.42262]
[1728053240457,3.63041,2366.6,2366.5,0.42262]
[1728053240672,7.4334,2366.6,2366.5,0.42262]
[1728053240864,7.4334,2366.6,2366.0,1.46108]
[1728053240865,0.42263,2366.5,2366.4,0.42264]
[1728053241164,8.32433,2366.6,2366.0,0.4043]
[1728053241358,4.26447,2366.3,2365.6,5.20496]
[1728053241554,4.26447,2366.3,2365.9,0.42273]
[1728053241555,0.42273,2366.0,2365.9,0.42273]
[1728053241758,0.42273,2366.0,2365.8,0.42274]
[1728053241959,3.63053,2366.0,2365.8,0.42274]
[1728053242166,3.63053,2366.0,2365.5,1.4872]
[1728053242359,3.63053,2366.0,2365.8,0.42273]
[1728053242563,4.2646,2366.0,2365.4,1.05705]
[1728053242758,4.06,2366.1,2365.3,3.2078]
[1728053242759,3.2078,2365.7,2365.3,1.0571]
[1728053242965,3.63058,2365.7,2365.6,0.42278]
[1728053243163,3.63058,2365.7,2365.5,0.42279]
[1728053243365,3.2078,2365.7,2365.6,0.42278]
[1728053243863,3.63057,2365.7,2365.6,0.42278]
[1728053244063,3.5996,2365.7,2365.2,1.05715]
[1728053244270,3.5996,2365.7,2365.6,0.42278]
[1728053244463,0.42279,2365.6,2365.2,0.42286]
[1728053244666,0.42281,2365.5,2365.3,0.42283]
[1728053244870,3.5996,2365.7,2365.1,0.425]
[1728053245062,7.2678,2365.3,2364.1,4.148]
[1728053245264,4.228,2365.6,2364.5,0.42297]
[1728053245265,0.42291,2364.9,2364.5,0.42297]
[1728053245462,0.42292,2364.9,2364.6,0.42295]
[1728053245664,3.3,2364.8,2364.4,1.0575]
[1728053245872,3.3,2364.8,2364.7,0.42293]
[1728053246570,0.42295,2364.7,2364.4,0.42299]
[1728053246776,3.3,2364.6,2364.4,0.42299]
[1728053246966,0.4201,2364.6,2364.2,0.4087]
[1728053247464,0.4201,2364.6,2364.5,0.42298]
[1728053247670,3.7201,2364.6,2364.2,0.4087]
[1728053247864,0.4201,2364.6,2364.2,0.4087]
[1728053248075,0.42298,2364.5,2364.3,0.42301]
[1728053248265,0.42298,2364.5,2364.2,0.83173]
[1728053248460,0.42298,2364.5,2363.7,3.2078]
[1728053248461,7.2678,2364.4,2363.7,0.4023]
[1728053248761,3.2078,2364.1,2363.7,0.4023]
[1728053248967,7.2678,2364.4,2363.7,0.4023]
[1728053249272,3.2078,2364.4,2364.3,0.42302]
[1728053255468,3.63075,2364.7,2364.5,0.42297]
[1728053255670,3.2078,2364.7,2364.6,0.42296]
[1728053255983,3.2078,2364.7,2364.1,1.05764]
[1728053256368,3.2078,2364.7,2364.5,0.42297]
[1728053256568,3.2078,2364.7,2364.1,1.05764]
[1728053256569,3.63075,2364.7,2364.6,0.42296]
[1728053257077,3.2078,2364.7,2364.6,0.42296]
[1728053257778,0.85042,2364.9,2364.4,0.3937]
[1728053257974,0.4275,2364.9,2364.8,0.42293]
[1728053258175,0.85042,2364.9,2364.7,0.42293]
[1728053258572,0.42293,2364.8,2364.7,0.42293]
[1728053258778,0.42293,2364.8,2364.4,0.3937]
[1728053258978,0.42293,2364.8,2364.7,0.42295]
[1728053259273,0.85042,2364.9,2364.4,0.3937]
[1728053259471,0.4275,2364.9,2364.4,1.45119]
[1728053259671,0.4275,2364.9,2364.7,0.42293]
[1728053259672,0.42293,2364.8,2364.7,0.42293]
[1728053259873,0.4275,2364.9,2364.4,0.3937]
[1728053260074,3.2078,2364.7,2364.6,0.42295]
[1728053260682,3.63075,2364.7,2364.6,0.42295]
[1728053260980,3.2078,2364.7,2364.6,0.42295]
[1728053261168,7.4366,2364.7,2364.1,1.05761]
[1728053261374,0.42298,2364.6,2364.5,0.42298]
[1728053261573,3.63076,2364.7,2364.6,0.42296]
[1728053262081,7.85956,2364.7,2364.6,0.42296]
[1728053262278,7.85955,2364.7,2364.6,0.42296]
[1728053262475,7.4366,2364.7,2364.6,0.42296]
[1728053262876,3.2078,2364.7,2364.6,0.42296]
[1728053264486,0.42298,2364.6,2364.5,0.42296]
[1728053265381,3.2078,2364.7,2364.1,1.05761]
[1728053265583,4.26519,2364.7,2364.1,1.05761]
[1728053265785,0.42298,2364.6,2364.5,0.42297]
[1728053266877,3.2078,2364.7,2364.1,1.05761]
[1728053267084,3.63082,2364.4,2364.3,0.42301]
[1728053267374,4.26531,2364.4,2364.0,0.3943]
[1728053267689,0.42305,2364.1,2364.0,0.81736]
[1728053267985,1.05759,2364.3,2364.0,0.3943]
[1728053268179,4.0248,2364.4,2364.3,0.42302]
[1728053268378,3.6018,2364.4,2364.3,0.42302]
[1728053269381,0.42296,2364.7,2364.6,0.42295]
[1728053269689,3.72296,2364.7,2364.6,0.42295]
[1728053269886,3.3,2364.7,2364.6,0.42295]
[1728053270384,3.72295,2364.7,2364.6,0.42295]
[1728053271281,3.3,2364.7,2364.3,0.42302]
[1728053271480,3.3,2364.7,2364.1,1.05762]
[1728053271682,1.45129,2364.9,2364.3,0.42302]
[1728053271683,0.42302,2364.4,2364.3,0.42302]
[1728053271978,4.26526,2364.5,2364.1,0.42305]
[1728053271979,3.3,2364.2,2364.1,0.42305]
[1728053272883,3.2078,2364.5,2364.1,4.65265]
[1728053273083,3.2078,2364.5,2364.4,0.423]
[1728053273280,3.63078,2364.5,2364.4,0.423]
[1728053273479,0.42303,2364.3,2364.2,0.42301]
[1728053273681,3.72303,2364.3,2364.2,0.42301]
[1728053273989,3.72303,2364.3,2364.0,0.3943]
[1728053273990,3.3,2364.3,2364.0,0.3943]
[1728053274195,0.416,2364.4,2364.3,0.42302]
[1728053275188,0.839,2364.4,2364.3,0.42302]
[1728053276092,7.9456,2364.4,2364.1,0.42304]
[1728053276402,6.5078,2364.2,2363.7,0.3924]
[1728053276588,6.5078,2364.2,2363.6,1.44545]
[1728053276787,0.42306,2364.1,2364.0,0.42306]
[1728053276985,7.5654,2364.2,2363.6,1.44545]
[1728053277186,0.42309,2364.0,2363.9,0.42308]
[1728053277391,0.42307,2364.1,2364.0,0.42306]
[1728053277786,6.5078,2364.2,2363.7,1.05781]
[1728053277989,6.93083,2364.2,2364.1,0.42305]
[1728053278191,6.5078,2364.2,2364.1,0.42305]
[1728053278390,3.63083,2364.2,2364.1,0.42305]
[1728053278586,3.2078,2364.2,2364.1,0.42305]
[1728053278995,3.2078,2364.2,2363.9,1.05772]
[1728053278996,4.139,2364.4,2363.9,1.05772]
[1728053279293,4.139,2364.4,2364.3,0.42302]
[1728053279693,8.3686,2364.4,2364.3,0.42302]
[1728053280898,7.9456,2364.4,2363.8,1.45856]
[1728053281085,0.42306,2364.1,2364.0,0.42305]
[1728053281284,6.5078,2364.2,2364.1,0.42305]
[1728053281590,6.93083,2364.2,2364.1,0.42305]
[1728053281792,0.4231,2363.9,2363.8,0.42309]
[1728053281995,0.4231,2363.9,2363.6,1.44546]
[1728053281996,0.42312,2363.8,2363.7,0.42311]
[1728053282292,0.4046,2363.8,2363.7,0.42311]
[1728053282486,0.42305,2364.2,2364.1,0.42305]
[1728053282685,0.42306,2364.1,2364.0,0.42306]
[1728053283397,3.72305,2364.2,2364.1,0.42305]
[1728053283597,0.42307,2364.1,2364.0,0.42306]
[1728053284084,4.2304,2364.1,2363.7,1.0578]
[1728053284290,6.93087,2364.0,2363.9,0.42307]
[1728053284496,6.5078,2364.0,2363.9,0.42307]
[1728053284992,6.93087,2364.0,2363.9,0.42307]
[1728053285590,6.5078,2364.0,2363.9,0.42307]
[1728053285994,6.93087,2364.0,2363.9,0.42307]
[1728053286193,6.5078,2364.0,2363.9,0.42307]
[1728053287394,6.5078,2364.3,2364.0,0.42307]
[1728053287696,6.5078,2364.3,2364.2,0.42303]
[1728053288207,3.2078,2364.3,2364.2,0.42303]
[1728053288503,3.3,2364.7,2364.6,0.42296]
[1728053289095,3.3,2364.7,2364.4,1.05749]
[1728053289096,0.42298,2364.6,2364.4,0.423]
[1728053289296,3.3,2364.5,2364.4,0.423]
[1728053289802,3.3,2364.7,2364.4,4.2296]
[1728053290005,0.3945,2364.8,2364.7,0.42295]
[1728053290601,6.93073,2364.9,2364.5,1.05746]
[1728053290602,3.2078,2364.9,2364.5,1.05746]
[1728053290798,3.2078,2364.9,2364.8,0.42293]
[1728053291499,3.3,2365.1,2364.6,1.8765]
[1728053291695,0.42293,2364.9,2364.8,0.42292]
[1728053291903,0.42293,2364.9,2364.3,2.52012]
[1728053291904,6.5078,2364.9,2364.3,2.52012]
[1728053292097,3.3,2364.7,2364.6,0.42296]
[1728053292306,3.3,2364.8,2364.3,0.4051]
[1728053292497,3.2078,2364.9,2364.8,0.42293]
[1728053292698,3.3,2365.0,2364.9,0.42291]
[1728053292999,6.9023,2365.2,2364.7,1.05735]
[1728053293204,6.9023,2365.2,2365.1,0.42287]
[1728053293502,3.2078,2365.2,2365.1,0.42287]
[1728053293696,6.9044,2365.6,2364.9,0.8195]
[1728053293896,0.3966,2365.6,2365.5,0.4228]
[1728053294099,7.43230203,2365.9,2365.8,0.42275]
[1728053294100,3.2078,2365.9,2365.8,0.42275]
[1728053294307,3.2078,2365.9,2365.2,3.3]
[1728053294500,3.3,2365.7,2365.6,0.42278]
[1728053295299,3.3,2365.7,2365.2,1.05713]
[1728053295495,3.72277,2365.7,2365.2,1.05713]
[1728053295900,0.42279,2365.6,2365.2,1.05713]
[1728053296101,3.72278,2365.7,2365.5,0.42279]
[1728053296801,3.3,2365.7,2365.2,1.05713]
[1728053297004,3.3,2365.7,2365.6,0.42278]
[1728053297508,6.5078,2365.9,2365.8,0.42275]
[1728053297704,3.2078,2365.9,2365.8,0.42275]
[1728053297907,3.2078,2365.9,2365.8,4.64995]
[1728053298113,3.3,2366.3,2366.2,0.42268]
[1728053298405,3.2078,2366.4,2366.3,0.42266]
[1728053299005,3.63044,2366.4,2366.3,0.42266]
[1728053299313,3.2078,2366.4,2366.3,0.42266]
[1728053300001,3.2078,2366.4,2366.2,0.42266]
[1728053300207,3.72266,2366.3,2366.1,0.42269]
[1728053301008,3.72266,2366.3,2365.9,0.42273]
[1728053301009,0.42272,2366.0,2365.9,0.42273]
[1728053301311,0.42275,2365.8,2365.7,0.401]
[1728053301608,3.7089,2365.9,2365.7,0.401]
[1728053301806,3.3,2366.0,2365.9,0.42273]
[1728053302406,3.3,2366.2,2366.1,0.42269]
[1728053302801,6.5078,2366.4,2366.2,0.42267]
[1728053303007,0.42267,2366.3,2366.2,0.42268]
[1728053303202,6.93045,2366.4,2366.2,0.42268]
[1728053303815,6.5078,2366.4,2365.7,4.0026]
[1728053304012,6.5078,2366.4,2365.9,1.48063]
[1728053304013,6.93045,2366.4,2365.9,1.48063]
[1728053304210,6.5078,2366.4,2365.9,1.48063]
[1728053304712,6.5078,2366.4,2366.0,1.05679]
[1728053305014,6.5078,2366.4,2366.3,0.42266]
[1728053305707,6.5078,2366.4,2365.9,1.48063]
[1728053305708,3.2078,2366.4,2365.9,1.48063]
[1728053305912,3.63045,2366.4,2365.9,1.48063]
[1728053306108,0.42267,2366.3,2365.9,0.4238]
[1728053306314,3.2078,2366.4,2365.9,0.4238]
[1728053306504,3.2078,2366.4,2366.3,0.42266]
[1728053307506,3.2078,2366.4,2366.3,4.64826]
[1728053308108,3.2078,2366.4,2366.3,5.05156]
[1728053308308,3.2078,2366.4,2366.3,0.82596]
[1728053309021,3.63044,2366.4,2366.3,0.42266]
[1728053309413,3.2078,2366.4,2366.3,0.42266]
[1728053311108,3.63044,2366.4,2366.3,0.42266]
[1728053311411,0.42269,2366.1,2365.9,0.42271]
[1728053311613,0.4227,2366.1,2366.0,0.42271]
[1728053312019,0.42269,2366.2,2366.1,0.42269]
[1728053312318,0.42268,2366.2,2366.1,0.42269]
[1728053312513,0.4277,2366.3,2365.8,1.45787]
[1728053312722,0.4277,2366.3,2366.2,0.42268]
[1728053313108,0.85036,2366.3,2366.2,0.42268]
[1728053313521,0.4277,2366.3,2366.2,0.42268]
[1728053314224,0.85036,2366.3,2366.2,0.42268]
[1728053316510,3.2078,2366.4,2366.3,0.42266]
[1728053319922,3.63044,2366.4,2366.3,0.42266]
[1728053320117,3.2078,2366.4,2366.3,0.42266]
[1728053320319,0.4227,2366.1,2366.0,0.42271]
[1728053320514,0.4227,2366.1,2365.8,0.401]
[1728053320515,0.42269,2366.2,2366.1,0.42269]
[1728053320720,0.42269,2366.2,2365.8,0.401]
[1728053320920,1.23997,2366.3,2366.2,0.42268]
[1728053321115,0.84247,2366.3,2366.2,0.42268]
[1728053321318,0.4198,2366.3,2365.8,1.45786]
[1728053321826,0.42269,2366.2,2366.1,0.42268]
[1728053322421,0.84247,2366.3,2366.2,0.42268]
[1728053323021,0.42268,2366.2,2366.1,0.42269]
[1728053323218,0.4198,2366.3,2366.2,0.42268]
[1728053323419,3.2078,2366.4,2366.3,0.42266]
[1728053323627,0.4227,2366.1,2366.0,0.42271]
[1728053323824,1.05666,2366.3,2365.8,1.05684]
[1728053324222,0.42269,2366.2,2365.9,0.42273]
[1728053324423,1.47932,2366.3,2365.8,1.05684]
[1728053324625,0.84871,2366.1,2365.7,3.6216]
[1728053324917,0.426,2366.1,2366.0,0.42271]
[1728053325921,3.2078,2366.4,2366.3,0.42266]
[1728053326119,3.63044,2366.4,2366.3,0.42266]
[1728053326430,3.2078,2366.4,2366.3,0.42266]
[1728053327329,3.63044,2366.4,2366.3,0.42266]
[1728053327526,3.2078,2366.4,2366.3,0.42266]
[1728053327827,0.426,2366.6,2366.2,0.4218]
[1728053328126,0.426,2366.6,2366.5,0.42262]
[1728053328521,0.84861,2366.6,2366.5,0.42262]
[1728053328939,0.426,2366.6,2366.5,0.42262]
[1728053329234,0.84862,2366.6,2366.5,0.42262]
[1728053329423,0.426,2366.6,2366.5,0.42262]
[1728053329624,0.84861,2366.6,2366.5,0.42262]
[1728053331627,0.84861,2366.6,2366.3,1.05665]
[1728053331628,3.2078,2366.7,2366.6,0.42261]
[1728053331825,0.3878,2367.0,2366.9,0.42255]
[1728053332229,0.3878,2367.0,2366.8,0.82136]
[1728053332531,0.3878,2367.0,2366.4,3.3]
[1728053332532,0.42261,2366.7,2366.6,0.42259]
[1728053332832,3.63038,2366.8,2366.7,0.42259]
[1728053333219,3.63038,2366.8,2366.4,1.45541]
[1728053333220,3.2078,2366.8,2366.4,1.45541]
[1728053333433,4.26424,2366.8,2366.4,0.3988]
[1728053333625,0.4226,2366.7,2366.6,0.42259]
[1728053334931,3.2078,2366.8,2366.4,1.4554]
[1728053335128,3.63037,2366.8,2366.7,0.42259]
[1728053335433,3.2078,2366.8,2366.7,0.42259]
[1728053336232,0.4226,2366.7,2366.6,0.42259]
[1728053336734,3.2078,2366.8,2366.7,0.42259]
[1728053337234,3.63037,2366.8,2366.7,0.42259]
[1728053337435,3.2078,2366.8,2366.7,0.42259]
[1728053338337,0.4226,2366.7,2366.6,0.42259]
[1728053338641,3.63039,2366.8,2366.7,0.42259]
[1728053338839,0.3878,2367.0,2366.9,0.42255]
[1728053339335,3.6275,2367.4,2366.9,5.28118]
[1728053339538,4.02238,2367.4,2367.3,0.42248]
[1728053339839,4.02238,2367.4,2367.1,0.42251]
[1728053339840,0.42251,2367.2,2367.1,0.42251]
[1728053340341,0.42249,2367.3,2367.2,0.42249]
[1728053340732,0.42248,2367.3,2367.2,0.4225]
[1728053340932,0.42248,2367.3,2367.0,0.4257]
[1728053340933,0.4225,2367.2,2367.1,0.4225]
[1728053341133,3.5999,2367.4,2367.0,1.48204]
[1728053341340,3.2078,2367.4,2367.3,0.42248]
[1728053341734,3.63026,2367.4,2367.3,0.42248]
[1728053341932,0.42249,2367.3,2367.2,0.4225]
[1728053342139,3.2078,2367.4,2367.3,0.42248]
[1728053342435,3.6285,2367.4,2367.3,0.42248]
[1728053342641,4.05096,2367.4,2367.3,0.42248]
[1728053343133,3.6285,2367.4,2367.3,0.42248]
[1728053343945,3.2078,2367.4,2367.3,4.64648]
[1728053344943,3.2078,2368.2,2367.6,0.42243]
[1728053345139,3.2078,2368.2,2367.6,3.72243]
[1728053345140,0.4095,2368.1,2367.6,3.72243]
[1728053345345,0.83185,2368.1,2368.0,0.42236]
[1728053345547,0.4095,2368.1,2368.0,0.42236]
[1728053346239,3.2078,2368.5,2368.4,0.42228]
[1728053346442,0.3913,2368.7,2368.6,0.42225]
[1728053346744,0.42216,2369.1,2368.9,0.4222]
[1728053346942,3.3,2369.2,2368.8,0.4222]
[1728053347146,3.3,2369.2,2368.5,0.4235]
[1728053347147,3.3,2369.1,2368.5,0.4235]
[1728053347339,0.4222,2368.9,2368.7,0.42221]
[1728053347642,0.42223,2368.8,2368.6,0.42224]
[1728053347844,7.73088,2369.0,2368.8,0.42221]
[1728053348040,7.73088,2369.0,2368.5,1.05567]
[1728053348248,0.4222,2368.9,2368.7,0.42222]
[1728053348438,0.42221,2368.9,2368.7,0.42222]
[1728053348634,3.3,2368.8,2368.2,4.0385]
[1728053348849,3.2078,2368.7,2368.6,0.42225]
[1728053349143,3.2078,2368.7,2368.2,0.8307]
[1728053349838,3.2078,2368.7,2368.4,0.42228]
[1728053350049,0.42227,2368.5,2368.4,0.42228]
[1728053350350,0.42225,2368.6,2368.5,0.42225]
[1728053350844,0.42225,2368.6,2368.2,0.4035]
[1728053350845,4.2216,2368.6,2368.2,0.4035]
[1728053351043,3.2078,2368.7,2368.2,0.4035]
[1728053351237,0.4054,2368.9,2368.8,0.42221]
[1728053351940,0.8276,2368.9,2368.4,1.05572]
[1728053352143,0.4054,2368.9,2368.8,0.42221]
[1728053353544,0.8276,2368.9,2368.8,0.42221]
[1728053353848,3.2078,2369.0,2368.4,1.05572]
[1728053354044,3.2078,2369.0,2368.9,0.4222]
[1728053354743,3.62998,2369.0,2368.9,0.4222]
[1728053354949,3.62998,2369.0,2368.8,0.4222]
[1728053354950,0.4222,2368.9,2368.8,0.4222]
[1728053355152,0.42221,2368.9,2368.7,0.4016]
[1728053355352,0.42221,2368.9,2368.8,0.42221]
[1728053355649,0.42226,2368.6,2368.5,0.42226]
[1728053355847,1.05554,2368.8,2368.1,1.05582]
[1728053355848,3.2078,2368.7,2368.1,1.05582]
[1728053356048,3.63004,2368.7,2368.6,0.42225]
[1728053356240,3.63004,2368.7,2368.2,1.05581]
[1728053356446,3.2078,2368.7,2368.6,0.42225]
[1728053356743,3.2078,2368.7,2368.2,0.42232]
[1728053356946,3.63004,2368.7,2368.6,0.42225]
[1728053357152,0.42226,2368.6,2368.1,1.05584]
[1728053357451,0.4251,2368.6,2368.1,1.05584]
[1728053357645,0.84735,2368.6,2368.5,0.42227]
[1728053357853,0.4251,2368.6,2368.5,0.42227]
[1728053358151,0.42225,2368.6,2368.5,4.64387]
[1728053358351,0.213,2369.2,2369.1,0.42216]
[1728053358645,0.42217,2369.1,2369.0,0.42217]
[1728053358849,3.6203,2369.3,2368.7,1.05555]
[1728053359045,0.42214,2369.2,2369.0,0.42216]
[1728053359245,0.42217,2369.1,2368.9,0.42219]
[1728053359454,3.2078,2369.0,2368.9,0.42219]
[1728053359653,3.2078,2369.0,2368.6,1.2201]
[1728053359852,3.2078,2369.0,2368.9,0.4222]
[1728053360150,4.04243,2369.3,2368.8,1.05553]
[1728053360355,3.2078,2369.3,2369.2,0.42214]
[1728053360548,0.83836,2369.7,2369.2,0.42214]
[1728053360549,3.6203,2369.6,2369.5,0.42208]
[1728053360745,4.04237,2369.6,2369.4,0.42209]
[1728053361051,3.6203,2369.6,2369.1,2.2376]
[1728053361251,4.04237,2369.6,2369.4,0.42209]
[1728053361455,4.04237,2369.6,2369.1,2.2376]
[1728053361650,3.6203,2369.6,2369.5,0.42209]
[1728053362349,4.04237,2369.6,2369.5,0.42209]
[1728053362649,3.6203,2369.6,2369.5,0.42209]
[1728053363151,3.6203,2369.6,2369.1,2.2376]
[1728053363152,0.4221,2369.5,2369.3,0.42211]
[1728053363354,4.04237,2369.6,2369.4,0.42211]
[1728053363555,4.04237,2369.6,2369.4,0.4221]
[1728053363855,4.04237,2369.6,2369.1,1.4476]
[1728053364052,4.04237,2369.6,2369.4,0.42209]
[1728053364249,3.6203,2369.6,2369.1,1.4476]
[1728053364449,3.6203,2369.6,2369.5,0.42209]
[1728053365551,4.04237,2369.6,2369.5,0.42209]
[1728053365743,3.6203,2369.6,2369.5,0.42209]
[1728053365946,4.04237,2369.6,2369.5,0.42209]
[1728053367356,4.04237,2369.6,2369.4,0.4221]
[1728053367357,0.42209,2369.5,2369.4,0.4221]
[1728053367554,4.04238,2369.6,2369.4,0.4221]
[1728053367857,4.04238,2369.6,2369.5,0.42209]
[1728053368363,0.4221,2369.5,2369.1,1.4476]
[1728053368553,3.2078,2369.3,2369.1,0.3922]
[1728053368866,3.62992,2369.3,2369.2,0.42214]
[1728053369052,3.2078,2369.3,2369.2,0.42214]
[1728053370053,3.6203,2369.6,2369.4,0.42209]
[1728053370251,3.6203,2369.6,2369.5,0.42209]
[1728053372454,3.2078,2369.6,2369.5,4.64209]
[1728053373258,3.2078,2369.6,2369.5,7.93209]
[1728053374059,1.05505,2369.9,2369.5,7.51]
[1728053374258,1.05505,2369.9,2369.8,0.42202]
[1728053374259,0.42202,2369.9,2369.8,0.42202]
[1728053374664,0.4112,2370.0,2369.9,0.42202]
[1728053374862,0.8332,2370.0,2369.9,0.42202]
[1728053375058,0.8332,2370.0,2369.6,1.47208]
[1728053375059,0.4112,2370.0,2369.6,1.47208]
[1728053375267,0.4112,2370.0,2369.8,0.42203]
[1728053375268,0.42204,2369.9,2369.8,0.42203]
[1728053375461,0.42205,2369.8,2369.7,0.42204]
[1728053375858,3.2078,2369.9,2369.8,0.42203]
[1728053376164,3.62982,2369.9,2369.8,0.42203]
[1728053376760,0.83321,2370.0,2369.9,0.42202]
[1728053376960,0.42203,2369.9,2369.8,0.42203]
[1728053378065,0.42203,2369.9,2369.6,0.4169]
[1728053378066,0.42204,2369.8,2369.6,0.4169]
[1728053378264,0.42204,2369.8,2369.4,0.4221]
[1728053378265,0.4221,2369.5,2369.4,0.4221]
[1728053378963,1.45758,2369.7,2369.3,3.2078]
[1728053379168,0.81285,2369.8,2369.7,0.42205]
[1728053379761,0.3908,2369.8,2369.3,4.26311]
[1728053380276,0.42208,2369.6,2369.5,0.42208]